Workbook

Sheet Instructions

Sheet Meta data_sheet
A1: Ambient Monitoring Station | B1: Details | D1: Ambient Monitoring Results | E1: Details
A2: Location | B2: Maules Creek | D2: PM2.5 monitoring start (dd/mm/yyyy hh:mm) | E2: 2025-04-01
A3: Easting | B3: =VLOOKUP($B$2,'Meta data_lookup'!$A$2:$D$5,2,FALSE) -> 225302 | D3: PM2.5 monitoring end | E3: 2025-04-14
A4: Northing | B4: =VLOOKUP($B$2,'Meta data_lookup'!$A$2:$D$5,3,FALSE) -> 6623037 | D4: PM2.5 monitoring period (h) | E4: =(E3-E2)*24 -> 312
A5: Site elevation (m) | B5: =VLOOKUP($B$2,'Meta data_lookup'!$A$2:$D$5,4,FALSE) -> ND | D5: Number of valid PM2.5 results | E5: =COUNTIF('Raw data_sheet'!G2:G745,"Valid") -> 312
A6: Description of surrounding land use | B6: Agriculture/Mining | D6: Proportion of valid PM2.5 results (%) | E6: =E5/E4 -> 1
A7: Typical sources impacting on the site | B7: Agriculture/Mining/Unsealed Roads | D7: PM10 monitoring start (dd/mm/yyyy hh:mm) | E7: 2025-04-01
A8: Site compliance with AS/NZS 3580.1.1:2007 | B8: Yes | D8: PM10 monitoring end | E8: 2025-04-14
A9: PM2.5 method compliance with AS/NZS 3580.9.13:2013 | B9: Yes | D9: PM10 monitoring period (h) | E9: =(E8-E7)*24 -> 312
A10: PM2.5 instrument make | B10: Thermo Scientific | D10: Number of valid PM10 results | E10: =COUNTIF('Raw data_sheet'!J2:J745,"Valid") -> 312
A11: PM2.5 instrument model | B11: 1405DF | D11: Proportion of valid PM10 results (%) | E11: =E10/E9 -> 1
A12: PM2.5 instrument intake height (m) | B12: 3.5
A13: PM10 method compliance with AS 3580.9.8-2008 | B13: No*
A14: PM10 instrument make | B14: Thermo Scientific
A15: PM10 instrument model | B15: 1405DF
A16: PM10 instrument intake height (m) | B16: 3.5
A17: *The 1405DF TEOM used at this site measures PM10 indirectly rather than directly. The unit does however meet the intent of AS 3580.9.8-2008, and this method has been accredited by the USEPA. It is considered scientifically robust and is used extensively throughout NSW with EPA's knowledge and informal acceptance.

Sheet Meta data_lookup
A1: Location | B1: Easting | C1: Northing | D1: Site elevation (m)
A2: Maules Creek | B2: 225302 | C2: 6623037 | D2: ND
A3: Breeza | B3: 237993 | C3: 6542606 | D3: ND
A4: Will-gai | B4: 231804 | C4: 6596392 | D4: ND
A5: Werris Creek | B5: 276783 | C5: 6528734 | D5: ND

Sheet Raw data_sheet
A1: Year | B1: Month | C1: Day | D1: Hour | E1: Date and time | F1: PM2.5_hourly | G1: PM2.5_Data_Status | H1: PM2.5_24hr_rolling_average | I1: PM10_hourly | J1: PM10_Data_Status | K1: PM10_24hr_rolling_average | L1: Cause of data invalidity, if applicable | M1: Detailed comments | N1: PM2.5_hourly_valid_plot | O1: PM2.5_24hr_rolling_ave_valid_plot | P1: PM10_hourly_valid_plot | Q1: PM10_24hr_rolling_ave_valid_plot | R1: PM10_hourly_valid_plot_series | S1: PM10_24hr_rolling_average_valid_plot_series | T1: PM2.5_hourly_valid_plot_series | U1: PM2.5_24hr_rolling_average_valid_plot_series
A2: 2025 | B2: 4 | C2: 1 | D2: 0 | E2: =DATE(A2,B2,C2)+TIME(D2,0,0) -> 45748 | F2: 3.85 | G2: Valid | H2: 3.622916667 | I2: 5.73 | J2: Valid | K2: 8.484583333 | N2: =IF(G2="Valid", F2, NA()) -> 3.85 | O2: =IF(G2="Valid", H2, NA()) -> 3.622916667 | P2: =IF(J2="Valid", I2, NA()) -> 5.73 | Q2: =IF(J2="Valid", K2, NA()) -> 8.484583333 | R2: 5.73 | S2: 8.484583333 | T2: 3.85 | U2: 3.622916667
A3: 2025 | B3: 4 | C3: =C2 -> 1 | D3: =IF(D2=23,0,D2+1) -> 1 | E3: =E2+0.0416666666666666 -> 45748.04167 | F3: 2.57 | G3: Valid | H3: 3.601666667 | I3: 4.53 | J3: Valid | K3: 8.428333333 | N3: 2.57 | O3: =IF(G3="Valid", H3, NA()) -> 3.601666667 | P3: 4.53 | Q3: 8.428333333 | R3: 4.53 | S3: 8.428333333 | T3: 2.57 | U3: 3.601666667
A4: 2025 | B4: 4 | C4: =C3 -> 1 | D4: =IF(D3=23,0,D3+1) -> 2 | E4: =E3+0.0416666666666666 -> 45748.08333 | F4: 2.15 | G4: Valid | H4: 3.545416667 | I4: 3.72 | J4: Valid | K4: 8.295833333 | N4: 2.15 | O4: 3.545416667 | P4: 3.72 | Q4: 8.295833333 | R4: 3.72 | S4: 8.295833333 | T4: 2.15 | U4: 3.545416667
A5: 2025 | B5: 4 | C5: 1 | D5: 3 | E5: 45748.125 | F5: 1.65 | G5: Valid | H5: 3.577916667 | I5: 3.34 | J5: Valid | K5: 8.244583333 | N5: 1.65 | O5: 3.577916667 | P5: 3.34 | Q5: 8.244583333 | R5: 3.34 | S5: 8.244583333 | T5: 1.65 | U5: 3.577916667
A6: 2025 | B6: 4 | C6: 1 | D6: 4 | E6: 45748.16667 | F6: 0.7 | G6: Valid | H6: 3.652916667 | I6: 2.21 | J6: Valid | K6: 8.19625 | N6: 0.7 | O6: 3.652916667 | P6: 2.21 | Q6: 8.19625 | R6: 2.21 | S6: 8.19625 | T6: 0.7 | U6: 3.652916667
A7: 2025 | B7: 4 | C7: 1 | D7: 5 | E7: 45748.20833 | F7: 2.18 | G7: Valid | H7: 3.67125 | I7: 3.69 | J7: Valid | K7: 8.082916667 | N7: 2.18 | O7: 3.67125 | P7: 3.69 | Q7: 8.082916667 | R7: 3.69 | S7: 8.082916667 | T7: 2.18 | U7: 3.67125
A8: 2025 | B8: 4 | C8: 1 | D8: 6 | E8: 45748.25 | F8: 2.34 | G8: Valid | H8: 3.67625 | I8: 3.94 | J8: Valid | K8: 7.964166667 | N8: 2.34 | O8: 3.67625 | P8: 3.94 | Q8: 7.964166667 | R8: 3.94 | S8: 7.964166667 | T8: 2.34 | U8: 3.67625
A9: 2025 | B9: 4 | C9: 1 | D9: 7 | E9: 45748.29167 | F9: 2.03 | G9: Valid | H9: 3.592083333 | I9: 4.08 | J9: Valid | K9: 7.749583333 | N9: 2.03 | O9: 3.592083333 | P9: 4.08 | Q9: 7.749583333 | R9: 4.08 | S9: 7.749583333 | T9: 2.03 | U9: 3.592083333
A10: 2025 | B10: 4 | C10: 1 | D10: 8 | E10: 45748.33333 | F10: 4.11 | G10: Valid | H10: 3.63625 | I10: 6.23 | J10: Valid | K10: 7.667916667 | N10: 4.11 | O10: 3.63625 | P10: 6.23 | Q10: 7.667916667 | R10: 6.23 | S10: 7.667916667 | T10: 4.11 | U10: 3.63625
A11: 2025 | B11: 4 | C11: 1 | D11: 9 | E11: 45748.375 | F11: 3.48 | G11: Valid | H11: 3.515833333 | I11: 5.53 | J11: Valid | K11: 7.439166667 | N11: 3.48 | O11: 3.515833333 | P11: 5.53 | Q11: 7.439166667 | R11: 5.53 | S11: 7.439166667 | T11: 3.48 | U11: 3.515833333
A12: 2025 | B12: 4 | C12: 1 | D12: 10 | E12: 45748.41667 | F12: 1.64 | G12: Valid | H12: 3.58125 | I12: 3.55 | J12: Valid | K12: 7.438333333 | N12: 1.64 | O12: 3.58125 | P12: 3.55 | Q12: 7.438333333 | R12: 3.55 | S12: 7.438333333 | T12: 1.64 | U12: 3.58125
A13: 2025 | B13: 4 | C13: 1 | D13: 11 | E13: 45748.45833 | F13: -2.01 | G13: Valid | H13: 3.517916667 | I13: 0.25 | J13: Valid | K13: 7.37 | N13: -2.01 | O13: 3.517916667 | P13: 0.25 | Q13: 7.37 | R13: 0.25 | S13: 7.37 | T13: -2.01 | U13: 3.517916667
A14: 2025 | B14: 4 | C14: 1 | D14: 12 | E14: 45748.5 | F14: 1.53 | G14: Valid | H14: 3.435833333 | I14: 4.47 | J14: Valid | K14: 7.317083333 | N14: 1.53 | O14: 3.435833333 | P14: 4.47 | Q14: 7.317083333 | R14: 4.47 | S14: 7.317083333 | T14: 1.53 | U14: 3.435833333
A15: 2025 | B15: 4 | C15: 1 | D15: 13 | E15: 45748.54167 | F15: 3.04 | G15: Valid | H15: 3.408333333 | I15: 8.05 | J15: Valid | K15: 7.407083333 | N15: 3.04 | O15: 3.408333333 | P15: 8.05 | Q15: 7.407083333 | R15: 8.05 | S15: 7.407083333 | T15: 3.04 | U15: 3.408333333
A16: 2025 | B16: 4 | C16: 1 | D16: 14 | E16: 45748.58333 | F16: 4.46 | G16: Valid | H16: 3.245 | I16: 8 | J16: Valid | K16: 7.263333333 | N16: 4.46 | O16: 3.245 | P16: 8 | Q16: 7.263333333 | R16: 8 | S16: 7.263333333 | T16: 4.46 | U16: 3.245
A17: 2025 | B17: 4 | C17: 1 | D17: 15 | E17: 45748.625 | F17: 2.57 | G17: Valid | H17: 2.922916667 | I17: 6.07 | J17: Valid | K17: 6.69375 | N17: 2.57 | O17: 2.922916667 | P17: 6.07 | Q17: 6.69375 | R17: 6.07 | S17: 6.69375 | T17: 2.57 | U17: 2.922916667
A18: 2025 | B18: 4 | C18: 1 | D18: 16 | E18: 45748.66667 | F18: 5.36 | G18: Valid | H18: 2.93875 | I18: 9.54 | J18: Valid | K18: 6.494166667 | N18: 5.36 | O18: 2.93875 | P18: 9.54 | Q18: 6.494166667 | R18: 9.54 | S18: 6.494166667 | T18: 5.36 | U18: 2.93875
A19: 2025 | B19: 4 | C19: 1 | D19: 17 | E19: 45748.70833 | F19: 3.17 | G19: Valid | H19: 2.786666667 | I19: 5.9 | J19: Valid | K19: 6.16625 | N19: 3.17 | O19: 2.786666667 | P19: 5.9 | Q19: 6.16625 | R19: 5.9 | S19: 6.16625 | T19: 3.17 | U19: 2.786666667
A20: 2025 | B20: 4 | C20: 1 | D20: 18 | E20: 45748.75 | F20: 0.79 | G20: Valid | H20: 2.711666667 | I20: 4.02 | J20: Valid | K20: 5.813333333 | N20: 0.79 | O20: 2.711666667 | P20: 4.02 | Q20: 5.813333333 | R20: 4.02 | S20: 5.813333333 | T20: 0.79 | U20: 2.711666667
A21: 2025 | B21: 4 | C21: 1 | D21: 19 | E21: 45748.79167 | F21: -2.29 | G21: Valid | H21: 2.46625 | I21: 0.06 | J21: Valid | K21: 5.430416667 | N21: -2.29 | O21: 2.46625 | P21: 0.06 | Q21: 5.430416667 | R21: 0.06 | S21: 5.430416667 | T21: -2.29 | U21: 2.46625
A22: 2025 | B22: 4 | C22: 1 | D22: 20 | E22: 45748.83333 | F22: 2.95 | G22: Valid | H22: 2.347083333 | I22: 5.45 | J22: Valid | K22: 4.835833333 | N22: 2.95 | O22: 2.347083333 | P22: 5.45 | Q22: 4.835833333 | R22: 5.45 | S22: 4.835833333 | T22: 2.95 | U22: 2.347083333
A23: 2025 | B23: 4 | C23: 1 | D23: 21 | E23: 45748.875 | F23: 1.93 | G23: Valid | H23: 2.317083333 | I23: 4.55 | J23: Valid | K23: 4.807083333 | N23: 1.93 | O23: 2.317083333 | P23: 4.55 | Q23: 4.807083333 | R23: 4.55 | S23: 4.807083333 | T23: 1.93 | U23: 2.317083333
A24: 2025 | B24: 4 | C24: 1 | D24: 22 | E24: 45748.91667 | F24: 6.53 | G24: Valid | H24: 2.449166667 | I24: 9.3 | J24: Valid | K24: 4.935416667 | N24: 6.53 | O24: 2.449166667 | P24: 9.3 | Q24: 4.935416667 | R24: 9.3 | S24: 4.935416667 | T24: 6.53 | U24: 2.449166667
A25: 2025 | B25: 4 | C25: =C24 -> 1 | D25: 23 | E25: 45748.95833 | F25: 3.32 | G25: Valid | H25: 2.41875 | I25: 6.69 | J25: Valid | K25: 4.954166667 | N25: 3.32 | O25: 2.41875 | P25: 6.69 | Q25: 4.954166667 | R25: 6.69 | S25: 4.954166667 | T25: 3.32 | U25: 2.41875
A26: 2025 | B26: 4 | C26: =C2+1 -> 2 | D26: 0 | E26: 45749 | F26: 4.59 | G26: Valid | H26: 2.449583333 | I26: 8.17 | J26: Valid | K26: 5.055833333 | N26: 4.59 | O26: 2.449583333 | P26: 8.17 | Q26: 5.055833333 | R26: 8.17 | S26: 5.055833333 | T26: 4.59 | U26: 2.449583333
A27: 2025 | B27: 4 | C27: =C3+1 -> 2 | D27: 1 | E27: 45749.04167 | F27: 4.95 | G27: Valid | H27: 2.54875 | I27: 8.49 | J27: Valid | K27: 5.220833333 | N27: 4.95 | O27: 2.54875 | P27: 8.49 | Q27: 5.220833333 | R27: 8.49 | S27: 5.220833333 | T27: 4.95 | U27: 2.54875
A28: 2025 | B28: 4 | C28: 2 | D28: 2 | E28: 45749.08333 | F28: 3.56 | G28: Valid | H28: 2.6075 | I28: 6.65 | J28: Valid | K28: 5.342916667 | N28: 3.56 | O28: 2.6075 | P28: 6.65 | Q28: 5.342916667 | R28: 6.65 | S28: 5.342916667 | T28: 3.56 | U28: 2.6075
A29: 2025 | B29: 4 | C29: 2 | D29: 3 | E29: 45749.125 | F29: 7.05 | G29: Valid | H29: 2.8325 | I29: 10.65 | J29: Valid | K29: 5.6475 | N29: 7.05 | O29: 2.8325 | P29: 10.65 | Q29: 5.6475 | R29: 10.65 | S29: 5.6475 | T29: 7.05 | U29: 2.8325
A30: 2025 | B30: 4 | C30: 2 | D30: 4 | E30: 45749.16667 | F30: 6.72 | G30: Valid | H30: 3.083333333 | I30: 9.58 | J30: Valid | K30: 5.954583333 | N30: 6.72 | O30: 3.083333333 | P30: 9.58 | Q30: 5.954583333 | R30: 9.58 | S30: 5.954583333 | T30: 6.72 | U30: 3.083333333
A31: 2025 | B31: 4 | C31: 2 | D31: 5 | E31: 45749.20833 | F31: 7.87 | G31: Valid | H31: 3.320416667 | I31: 10.21 | J31: Valid | K31: 6.22625 | N31: 7.87 | O31: 3.320416667 | P31: 10.21 | Q31: 6.22625 | R31: 10.21 | S31: 6.22625 | T31: 7.87 | U31: 3.320416667
A32: 2025 | B32: 4 | C32: 2 | D32: 6 | E32: 45749.25 | F32: 4.03 | G32: Valid | H32: 3.390833333 | I32: 6.21 | J32: Valid | K32: 6.320833333 | N32: 4.03 | O32: 3.390833333 | P32: 6.21 | Q32: 6.320833333 | R32: 6.21 | S32: 6.320833333 | T32: 4.03 | U32: 3.390833333
A33: 2025 | B33: 4 | C33: 2 | D33: 7 | E33: 45749.29167 | F33: 7.52 | G33: Valid | H33: 3.619583333 | I33: 9.34 | J33: Valid | K33: 6.54 | N33: 7.52 | O33: 3.619583333 | P33: 9.34 | Q33: 6.54 | R33: 9.34 | S33: 6.54 | T33: 7.52 | U33: 3.619583333
A34: 2025 | B34: 4 | C34: 2 | D34: 8 | E34: 45749.33333 | F34: 6.99 | G34: Valid | H34: 3.739583333 | I34: 8.69 | J34: Valid | K34: 6.6425 | N34: 6.99 | O34: 3.739583333 | P34: 8.69 | Q34: 6.6425 | R34: 8.69 | S34: 6.6425 | T34: 6.99 | U34: 3.739583333
A35: 2025 | B35: 4 | C35: 2 | D35: 9 | E35: 45749.375 | F35: 12.4 | G35: Valid | H35: 4.11125 | I35: 13.9 | J35: Valid | K35: 6.99125 | N35: 12.4 | O35: 4.11125 | P35: 13.9 | Q35: 6.99125 | R35: 13.9 | S35: 6.99125 | T35: 12.4 | U35: 4.11125
A36: 2025 | B36: 4 | C36: 2 | D36: 10 | E36: 45749.41667 | F36: 4.5 | G36: Valid | H36: 4.230416667 | I36: 5.52 | J36: Valid | K36: 7.073333333 | N36: 4.5 | O36: 4.230416667 | P36: 5.52 | Q36: 7.073333333 | R36: 5.52 | S36: 7.073333333 | T36: 4.5 | U36: 4.230416667
A37: 2025 | B37: 4 | C37: 2 | D37: 11 | E37: 45749.45833 | F37: 7.32 | G37: Valid | H37: 4.619166667 | I37: 8.65 | J37: Valid | K37: 7.423333333 | N37: 7.32 | O37: 4.619166667 | P37: 8.65 | Q37: 7.423333333 | R37: 8.65 | S37: 7.423333333 | T37: 7.32 | U37: 4.619166667
A38: 2025 | B38: 4 | C38: 2 | D38: 12 | E38: 45749.5 | F38: 5.79 | G38: Valid | H38: 4.796666667 | I38: 6.04 | J38: Valid | K38: 7.48875 | N38: 5.79 | O38: 4.796666667 | P38: 6.04 | Q38: 7.48875 | R38: 6.04 | S38: 7.48875 | T38: 5.79 | U38: 4.796666667
A39: 2025 | B39: 4 | C39: 2 | D39: 13 | E39: 45749.54167 | F39: 7.37 | G39: Valid | H39: 4.977083333 | I39: 7.89 | J39: Valid | K39: 7.482083333 | N39: 7.37 | O39: 4.977083333 | P39: 7.89 | Q39: 7.482083333 | R39: 7.89 | S39: 7.482083333 | T39: 7.37 | U39: 4.977083333
A40: 2025 | B40: 4 | C40: 2 | D40: 14 | E40: 45749.58333 | F40: 4.49 | G40: Valid | H40: 4.978333333 | I40: 5.06 | J40: Valid | K40: 7.359583333 | N40: 4.49 | O40: 4.978333333 | P40: 5.06 | Q40: 7.359583333 | R40: 5.06 | S40: 7.359583333 | T40: 4.49 | U40: 4.978333333
A41: 2025 | B41: 4 | C41: 2 | D41: 15 | E41: 45749.625 | F41: 7.71 | G41: Valid | H41: 5.1925 | I41: 8.47 | J41: Valid | K41: 7.459583333 | N41: 7.71 | O41: 5.1925 | P41: 8.47 | Q41: 7.459583333 | R41: 8.47 | S41: 7.459583333 | T41: 7.71 | U41: 5.1925
A42: 2025 | B42: 4 | C42: 2 | D42: 16 | E42: 45749.66667 | F42: 2.87 | G42: Valid | H42: 5.08875 | I42: 3.95 | J42: Valid | K42: 7.226666667 | N42: 2.87 | O42: 5.08875 | P42: 3.95 | Q42: 7.226666667 | R42: 3.95 | S42: 7.226666667 | T42: 2.87 | U42: 5.08875
A43: 2025 | B43: 4 | C43: 2 | D43: 17 | E43: 45749.70833 | F43: 7.39 | G43: Valid | H43: 5.264583333 | I43: 7.58 | J43: Valid | K43: 7.296666667 | N43: 7.39 | O43: 5.264583333 | P43: 7.58 | Q43: 7.296666667 | R43: 7.58 | S43: 7.296666667 | T43: 7.39 | U43: 5.264583333
A44: 2025 | B44: 4 | C44: 2 | D44: 18 | E44: 45749.75 | F44: 6.76 | G44: Valid | H44: 5.513333333 | I44: 7.51 | J44: Valid | K44: 7.442083333 | N44: =IF(G44="Valid", F44, NA()) -> 6.76 | O44: 5.513333333 | P44: 7.51 | Q44: 7.442083333 | R44: 7.51 | S44: 7.442083333 | T44: 6.76 | U44: 5.513333333
A45: 2025 | B45: 4 | C45: 2 | D45: 19 | E45: 45749.79167 | F45: 6.56 | G45: Valid | H45: 5.882083333 | I45: 6.89 | J45: Valid | K45: 7.726666667 | N45: 6.56 | O45: 5.882083333 | P45: 6.89 | Q45: 7.726666667 | R45: 6.89 | S45: 7.726666667 | T45: 6.56 | U45: 5.882083333
A46: 2025 | B46: 4 | C46: 2 | D46: 20 | E46: 45749.83333 | F46: 8.82 | G46: Valid | H46: 6.126666667 | I46: 9.63 | J46: Valid | K46: 7.900833333 | N46: 8.82 | O46: =IF(G46="Valid", H46, NA()) -> 6.126666667 | P46: =IF(J46="Valid", I46, NA()) -> 9.63 | Q46: 7.900833333 | R46: 9.63 | S46: 7.900833333 | T46: 8.82 | U46: 6.126666667
A47: 2025 | B47: 4 | C47: 2 | D47: 21 | E47: 45749.875 | F47: 6.19 | G47: Valid | H47: 6.304166667 | I47: 7.19 | J47: Valid | K47: 8.010833333 | N47: 6.19 | O47: 6.304166667 | P47: 7.19 | Q47: 8.010833333 | R47: 7.19 | S47: 8.010833333 | T47: 6.19 | U47: 6.304166667
A48: 2025 | B48: 4 | C48: 2 | D48: 22 | E48: 45749.91667 | F48: 6.9 | G48: Valid | H48: 6.319583333 | I48: 8.32 | J48: Valid | K48: 7.97 | N48: 6.9 | O48: 6.319583333 | P48: 8.32 | Q48: 7.97 | R48: 8.32 | S48: 7.97 | T48: 6.9 | U48: 6.319583333
A49: 2025 | B49: 4 | C49: 2 | D49: 23 | E49: 45749.95833 | F49: 6.71 | G49: Valid | H49: 6.460833333 | I49: 8.36 | J49: Valid | K49: 8.039583333 | N49: 6.71 | O49: 6.460833333 | P49: 8.36 | Q49: 8.039583333 | R49: 8.36 | S49: 8.039583333 | T49: 6.71 | U49: 6.460833333
A50: 2025 | B50: 4 | C50: 3 | D50: 0 | E50: 45750 | F50: 9.71 | G50: Valid | H50: 6.674166667 | I50: 11.51 | J50: Valid | K50: 8.17875 | N50: 9.71 | O50: 6.674166667 | P50: 11.51 | Q50: 8.17875 | R50: 11.51 | S50: 8.17875 | T50: 9.71 | U50: 6.674166667
A51: 2025 | B51: 4 | C51: 3 | D51: 1 | E51: 45750.04167 | F51: 6.05 | G51: Valid | H51: 6.72 | I51: 7.65 | J51: Valid | K51: 8.14375 | N51: 6.05 | O51: 6.72 | P51: 7.65 | Q51: 8.14375 | R51: 7.65 | S51: 8.14375 | T51: 6.05 | U51: 6.72
A52: 2025 | B52: 4 | C52: 3 | D52: 2 | E52: 45750.08333 | F52: 5.34 | G52: Valid | H52: 6.794166667 | I52: 7.42 | J52: Valid | K52: 8.175833333 | N52: 5.34 | O52: 6.794166667 | P52: 7.42 | Q52: 8.175833333 | R52: 7.42 | S52: 8.175833333 | T52: 5.34 | U52: 6.794166667
A53: 2025 | B53: 4 | C53: 3 | D53: 3 | E53: 45750.125 | F53: 9.4 | G53: Valid | H53: 6.892083333 | I53: 12.11 | J53: Valid | K53: 8.236666667 | N53: 9.4 | O53: 6.892083333 | P53: 12.11 | Q53: 8.236666667 | R53: 12.11 | S53: 8.236666667 | T53: 9.4 | U53: 6.892083333
A54: 2025 | B54: 4 | C54: 3 | D54: 4 | E54: 45750.16667 | F54: 3.6 | G54: Valid | H54: 6.762083333 | I54: 5.81 | J54: Valid | K54: 8.079583333 | N54: 3.6 | O54: 6.762083333 | P54: 5.81 | Q54: 8.079583333 | R54: 5.81 | S54: 8.079583333 | T54: 3.6 | U54: 6.762083333
A55: 2025 | B55: 4 | C55: 3 | D55: 5 | E55: 45750.20833 | F55: 5.62 | G55: Valid | H55: 6.668333333 | I55: 7.9 | J55: Valid | K55: 7.983333333 | N55: 5.62 | O55: 6.668333333 | P55: 7.9 | Q55: 7.983333333 | R55: 7.9 | S55: 7.983333333 | T55: 5.62 | U55: 6.668333333
A56: 2025 | B56: 4 | C56: 3 | D56: 6 | E56: 45750.25 | F56: 6.03 | G56: Valid | H56: 6.751666667 | I56: 8.8 | J56: Valid | K56: 8.09125 | N56: 6.03 | O56: 6.751666667 | P56: 8.8 | Q56: 8.09125 | R56: 8.8 | S56: 8.09125 | T56: 6.03 | U56: 6.751666667
A57: 2025 | B57: 4 | C57: 3 | D57: 7 | E57: 45750.29167 | F57: 6.85 | G57: Valid | H57: 6.72375 | I57: 9.39 | J57: Valid | K57: 8.093333333 | N57: 6.85 | O57: 6.72375 | P57: 9.39 | Q57: 8.093333333 | R57: 9.39 | S57: 8.093333333 | T57: 6.85 | U57: 6.72375
A58: 2025 | B58: 4 | C58: 3 | D58: 8 | E58: 45750.33333 | F58: 9.76 | G58: Valid | H58: 6.839166667 | I58: 11.34 | J58: Valid | K58: 8.20375 | N58: 9.76 | O58: 6.839166667 | P58: 11.34 | Q58: 8.20375 | R58: 11.34 | S58: 8.20375 | T58: 9.76 | U58: 6.839166667
A59: 2025 | B59: 4 | C59: 3 | D59: 9 | E59: 45750.375 | F59: 4.62 | G59: Valid | H59: 6.515 | I59: 6.95 | J59: Valid | K59: 7.914166667 | N59: 4.62 | O59: 6.515 | P59: 6.95 | Q59: 7.914166667 | R59: 6.95 | S59: 7.914166667 | T59: 4.62 | U59: 6.515
A60: 2025 | B60: 4 | C60: 3 | D60: 10 | E60: 45750.41667 | F60: 4.71 | G60: Valid | H60: 6.52375 | I60: 5.8 | J60: Valid | K60: 7.925833333 | N60: 4.71 | O60: 6.52375 | P60: 5.8 | Q60: 7.925833333 | R60: 5.8 | S60: 7.925833333 | T60: 4.71 | U60: 6.52375
A61: 2025 | B61: 4 | C61: 3 | D61: 11 | E61: 45750.45833 | F61: 8.98 | G61: Valid | H61: 6.592916667 | I61: 10.38 | J61: Valid | K61: 7.997916667 | N61: 8.98 | O61: 6.592916667 | P61: 10.38 | Q61: 7.997916667 | R61: 10.38 | S61: 7.997916667 | T61: 8.98 | U61: 6.592916667
A62: 2025 | B62: 4 | C62: 3 | D62: 12 | E62: 45750.5 | F62: 8.21 | G62: Valid | H62: 6.69375 | I62: 9.75 | J62: Valid | K62: 8.1525 | N62: 8.21 | O62: 6.69375 | P62: 9.75 | Q62: 8.1525 | R62: 9.75 | S62: 8.1525 | T62: 8.21 | U62: 6.69375
A63: 2025 | B63: 4 | C63: 3 | D63: 13 | E63: 45750.54167 | F63: 10 | G63: Valid | H63: 6.803333333 | I63: 12.12 | J63: Valid | K63: 8.32875 | N63: 10 | O63: 6.803333333 | P63: 12.12 | Q63: 8.32875 | R63: 12.12 | S63: 8.32875 | T63: 10 | U63: 6.803333333
A64: 2025 | B64: 4 | C64: 3 | D64: 14 | E64: 45750.58333 | F64: 7.61 | G64: Valid | H64: 6.933333333 | I64: 11.37 | J64: Valid | K64: 8.591666667 | N64: 7.61 | O64: 6.933333333 | P64: 11.37 | Q64: 8.591666667 | R64: 11.37 | S64: 8.591666667 | T64: 7.61 | U64: 6.933333333
A65: 2025 | B65: 4 | C65: 3 | D65: 15 | E65: 45750.625 | F65: 8.72 | G65: Valid | H65: 6.975416667 | I65: 13.39 | J65: Valid | K65: 8.796666667 | N65: 8.72 | O65: 6.975416667 | P65: 13.39 | Q65: 8.796666667 | R65: 13.39 | S65: 8.796666667 | T65: 8.72 | U65: 6.975416667
A66: 2025 | B66: 4 | C66: 3 | D66: 16 | E66: 45750.66667 | F66: 9.66 | G66: Valid | H66: 7.258333333 | I66: 14.52 | J66: Valid | K66: 9.237083333 | N66: 9.66 | O66: =IF(G66="Valid", H66, NA()) -> 7.258333333 | P66: =IF(J66="Valid", I66, NA()) -> 14.52 | Q66: =IF(J66="Valid", K66, NA()) -> 9.237083333 | R66: 14.52 | S66: 9.237083333 | T66: 9.66 | U66: 7.258333333
A67: 2025 | B67: 4 | C67: 3 | D67: 17 | E67: 45750.70833 | F67: 9.67 | G67: Valid | H67: 7.353333333 | I67: 14.89 | J67: Valid | K67: 9.541666667 | N67: 9.67 | O67: 7.353333333 | P67: 14.89 | Q67: 9.541666667 | R67: 14.89 | S67: 9.541666667 | T67: 9.67 | U67: 7.353333333
A68: 2025 | B68: 4 | C68: 3 | D68: =IF(D67=23,0,D67+1) -> 18 | E68: =E67+0.0416666666666666 -> 45750.75 | F68: 9.36 | G68: Valid | H68: 7.461666667 | I68: 13.6 | J68: Valid | K68: 9.795416667 | N68: 9.36 | O68: 7.461666667 | P68: 13.6 | Q68: 9.795416667 | R68: 13.6 | S68: 9.795416667 | T68: 9.36 | U68: 7.461666667
A69: 2025 | B69: 4 | C69: 3 | D69: 19 | E69: 45750.79167 | F69: 11.32 | G69: Valid | H69: 7.66 | I69: 16.07 | J69: Valid | K69: 10.17791667 | N69: 11.32 | O69: 7.66 | P69: 16.07 | Q69: 10.17791667 | R69: 16.07 | S69: 10.17791667 | T69: 11.32 | U69: 7.66
A70: 2025 | B70: 4 | C70: 3 | D70: 20 | E70: 45750.83333 | F70: 10.97 | G70: Valid | H70: 7.749583333 | I70: 15.45 | J70: Valid | K70: 10.42041667 | N70: 10.97 | O70: 7.749583333 | P70: 15.45 | Q70: 10.42041667 | R70: 15.45 | S70: 10.42041667 | T70: 10.97 | U70: 7.749583333
A71: 2025 | B71: 4 | C71: 3 | D71: 21 | E71: 45750.875 | F71: 12.12 | G71: Valid | H71: 7.996666667 | I71: 17.29 | J71: Valid | K71: 10.84125 | N71: 12.12 | O71: 7.996666667 | P71: 17.29 | Q71: 10.84125 | R71: 17.29 | S71: 10.84125 | T71: 12.12 | U71: 7.996666667
A72: 2025 | B72: 4 | C72: 3 | D72: 22 | E72: 45750.91667 | F72: 14.16 | G72: Valid | H72: 8.299166667 | I72: 19.35 | J72: Valid | K72: 11.30083333 | N72: 14.16 | O72: 8.299166667 | P72: 19.35 | Q72: 11.30083333 | R72: 19.35 | S72: 11.30083333 | T72: 14.16 | U72: 8.299166667
A73: 2025 | B73: 4 | C73: 3 | D73: 23 | E73: 45750.95833 | F73: 12.7 | G73: Valid | H73: 8.54875 | I73: 19.1 | J73: Valid | K73: 11.74833333 | N73: 12.7 | O73: 8.54875 | P73: 19.1 | Q73: 11.74833333 | R73: 19.1 | S73: 11.74833333 | T73: 12.7 | U73: 8.54875
A74: 2025 | B74: 4 | C74: 4 | D74: 0 | E74: 45751 | F74: 8.24 | G74: Valid | H74: 8.4875 | I74: 13.5 | J74: Valid | K74: 11.83125 | N74: 8.24 | O74: 8.4875 | P74: 13.5 | Q74: 11.83125 | R74: 13.5 | S74: 11.83125 | T74: 8.24 | U74: 8.4875
A75: 2025 | B75: 4 | C75: 4 | D75: 1 | E75: 45751.04167 | F75: 12.33 | G75: Valid | H75: 8.749166667 | I75: 17.04 | J75: Valid | K75: 12.2225 | N75: 12.33 | O75: 8.749166667 | P75: 17.04 | Q75: 12.2225 | R75: 17.04 | S75: 12.2225 | T75: 12.33 | U75: 8.749166667
A76: 2025 | B76: 4 | C76: 4 | D76: 2 | E76: 45751.08333 | F76: 10.67 | G76: Valid | H76: 8.97125 | I76: 14.98 | J76: Valid | K76: 12.5375 | N76: 10.67 | O76: 8.97125 | P76: 14.98 | Q76: 12.5375 | R76: 14.98 | S76: 12.5375 | T76: 10.67 | U76: 8.97125
A77: 2025 | B77: 4 | C77: 4 | D77: 3 | E77: 45751.125 | F77: 14.9 | G77: Valid | H77: 9.200416667 | I77: 19.21 | J77: Valid | K77: 12.83333333 | N77: 14.9 | O77: 9.200416667 | P77: 19.21 | Q77: 12.83333333 | R77: 19.21 | S77: 12.83333333 | T77: 14.9 | U77: 9.200416667
A78: 2025 | B78: 4 | C78: 4 | D78: 4 | E78: 45751.16667 | F78: 13.77 | G78: Valid | H78: 9.624166667 | I78: 17.02 | J78: Valid | K78: 13.30041667 | N78: 13.77 | O78: 9.624166667 | P78: 17.02 | Q78: 13.30041667 | R78: 17.02 | S78: 13.30041667 | T78: 13.77 | U78: 9.624166667
A79: 2025 | B79: 4 | C79: 4 | D79: 5 | E79: 45751.20833 | F79: 8.56 | G79: Valid | H79: 9.746666667 | I79: 12.62 | J79: Valid | K79: 13.49708333 | N79: 8.56 | O79: 9.746666667 | P79: 12.62 | Q79: 13.49708333 | R79: 12.62 | S79: 13.49708333 | T79: 8.56 | U79: 9.746666667
A80: 2025 | B80: 4 | C80: 4 | D80: 6 | E80: 45751.25 | F80: 10.82 | G80: Valid | H80: 9.94625 | I80: 15.06 | J80: Valid | K80: 13.75791667 | N80: 10.82 | O80: 9.94625 | P80: 15.06 | Q80: 13.75791667 | R80: 15.06 | S80: 13.75791667 | T80: 10.82 | U80: 9.94625
A81: 2025 | B81: 4 | C81: 4 | D81: 7 | E81: 45751.29167 | F81: 9.84 | G81: Valid | H81: 10.07083333 | I81: 13.24 | J81: Valid | K81: 13.91833333 | N81: 9.84 | O81: 10.07083333 | P81: 13.24 | Q81: 13.91833333 | R81: 13.24 | S81: 13.91833333 | T81: 9.84 | U81: 10.07083333
A82: 2025 | B82: 4 | C82: 4 | D82: 8 | E82: 45751.33333 | F82: 11.32 | G82: Valid | H82: 10.13583333 | I82: 16.06 | J82: Valid | K82: 14.115 | N82: 11.32 | O82: 10.13583333 | P82: 16.06 | Q82: 14.115 | R82: 16.06 | S82: 14.115 | T82: 11.32 | U82: 10.13583333
A83: 2025 | B83: 4 | C83: 4 | D83: 9 | E83: 45751.375 | F83: 9.05 | G83: Valid | H83: 10.32041667 | I83: 13.01 | J83: Valid | K83: 14.3675 | N83: 9.05 | O83: 10.32041667 | P83: 13.01 | Q83: 14.3675 | R83: 13.01 | S83: 14.3675 | T83: 9.05 | U83: 10.32041667
A84: 2025 | B84: 4 | C84: 4 | D84: 10 | E84: 45751.41667 | F84: 17.46 | G84: Valid | H84: 10.85166667 | I84: 28.82 | J84: Valid | K84: 15.32666667 | N84: 17.46 | O84: 10.85166667 | P84: 28.82 | Q84: 15.32666667 | R84: 28.82 | S84: 15.32666667 | T84: 17.46 | U84: 10.85166667
A85: 2025 | B85: 4 | C85: 4 | D85: 11 | E85: 45751.45833 | F85: 13.33 | G85: Valid | H85: 11.03291667 | I85: 25.97 | J85: Valid | K85: 15.97625 | N85: 13.33 | O85: 11.03291667 | P85: 25.97 | Q85: 15.97625 | R85: 25.97 | S85: 15.97625 | T85: 13.33 | U85: 11.03291667
A86: 2025 | B86: 4 | C86: 4 | D86: 12 | E86: 45751.5 | F86: 13.71 | G86: Valid | H86: 11.26208333 | I86: 25.03 | J86: Valid | K86: 16.61291667 | N86: 13.71 | O86: 11.26208333 | P86: 25.03 | Q86: 16.61291667 | R86: 25.03 | S86: 16.61291667 | T86: 13.71 | U86: 11.26208333
A87: 2025 | B87: 4 | C87: 4 | D87: 13 | E87: 45751.54167 | F87: 13.56 | G87: Valid | H87: 11.41041667 | I87: 27.69 | J87: Valid | K87: 17.26166667 | N87: 13.56 | O87: 11.41041667 | P87: 27.69 | Q87: 17.26166667 | R87: 27.69 | S87: 17.26166667 | T87: 13.56 | U87: 11.41041667
A88: 2025 | B88: 4 | C88: 4 | D88: 14 | E88: 45751.58333 | F88: 10.67 | G88: Valid | H88: 11.53791667 | I88: 23.11 | J88: Valid | K88: 17.75083333 | N88: 10.67 | O88: 11.53791667 | P88: 23.11 | Q88: 17.75083333 | R88: 23.11 | S88: 17.75083333 | T88: 10.67 | U88: 11.53791667
A89: 2025 | B89: 4 | C89: 4 | D89: 15 | E89: 45751.625 | F89: 10.45 | G89: Valid | H89: 11.61 | I89: 26.22 | J89: Valid | K89: 18.28541667 | N89: 10.45 | O89: 11.61 | P89: 26.22 | Q89: 18.28541667 | R89: 26.22 | S89: 18.28541667 | T89: 10.45 | U89: 11.61
A90: 2025 | B90: 4 | C90: 4 | D90: 16 | E90: 45751.66667 | F90: 10.12 | G90: Valid | H90: 11.62916667 | I90: 27.74 | J90: Valid | K90: 18.83625 | N90: 10.12 | O90: 11.62916667 | P90: 27.74 | Q90: 18.83625 | R90: 27.74 | S90: 18.83625 | T90: 10.12 | U90: 11.62916667
A91: 2025 | B91: 4 | C91: =C67+1 -> 4 | D91: 17 | E91: 45751.70833 | F91: 11.26 | G91: Valid | H91: 11.69541667 | I91: 28.05 | J91: Valid | K91: 19.38458333 | N91: 11.26 | O91: 11.69541667 | P91: 28.05 | Q91: 19.38458333 | R91: 28.05 | S91: 19.38458333 | T91: 11.26 | U91: 11.69541667
A92: 2025 | B92: 4 | C92: 4 | D92: 18 | E92: 45751.75 | F92: 13.27 | G92: Valid | H92: 11.85833333 | I92: 27.66 | J92: Valid | K92: 19.97041667 | N92: 13.27 | O92: 11.85833333 | P92: 27.66 | Q92: 19.97041667 | R92: 27.66 | S92: 19.97041667 | T92: 13.27 | U92: 11.85833333
A93: 2025 | B93: 4 | C93: 4 | D93: 19 | E93: 45751.79167 | F93: 10.32 | G93: Valid | H93: 11.81666667 | I93: 17.21 | J93: Valid | K93: 20.01791667 | N93: 10.32 | O93: 11.81666667 | P93: 17.21 | Q93: 20.01791667 | R93: 17.21 | S93: 20.01791667 | T93: 10.32 | U93: 11.81666667
A94: 2025 | B94: 4 | C94: 4 | D94: 20 | E94: 45751.83333 | F94: 9.08 | G94: Valid | H94: 11.73791667 | I94: 16.11 | J94: Valid | K94: 20.04541667 | N94: 9.08 | O94: 11.73791667 | P94: 16.11 | Q94: 20.04541667 | R94: 16.11 | S94: 20.04541667 | T94: 9.08 | U94: 11.73791667
A95: 2025 | B95: 4 | C95: 4 | D95: 21 | E95: 45751.875 | F95: 10.41 | G95: Valid | H95: 11.66666667 | I95: 18.53 | J95: Valid | K95: 20.09708333 | N95: 10.41 | O95: 11.66666667 | P95: 18.53 | Q95: 20.09708333 | R95: 18.53 | S95: 20.09708333 | T95: 10.41 | U95: 11.66666667
A96: 2025 | B96: 4 | C96: 4 | D96: 22 | E96: 45751.91667 | F96: 6.52 | G96: Valid | H96: 11.34833333 | I96: 14.77 | J96: Valid | K96: 19.90625 | N96: 6.52 | O96: 11.34833333 | P96: 14.77 | Q96: 19.90625 | R96: 14.77 | S96: 19.90625 | T96: 6.52 | U96: 11.34833333
A97: 2025 | B97: 4 | C97: 4 | D97: 23 | E97: 45751.95833 | F97: 9.35 | G97: Valid | H97: 11.20875 | I97: 16.64 | J97: Valid | K97: 19.80375 | N97: 9.35 | O97: 11.20875 | P97: 16.64 | Q97: 19.80375 | R97: 16.64 | S97: 19.80375 | T97: 9.35 | U97: 11.20875
A98: 2025 | B98: 4 | C98: 5 | D98: 0 | E98: 45752 | F98: 9.24 | G98: Valid | H98: 11.25041667 | I98: 15.15 | J98: Valid | K98: 19.8725 | N98: 9.24 | O98: 11.25041667 | P98: 15.15 | Q98: 19.8725 | R98: 15.15 | S98: 19.8725 | T98: 9.24 | U98: 11.25041667
A99: 2025 | B99: 4 | C99: 5 | D99: 1 | E99: 45752.04167 | F99: 9.02 | G99: Valid | H99: 11.1125 | I99: 14.66 | J99: Valid | K99: 19.77333333 | N99: 9.02 | O99: 11.1125 | P99: 14.66 | Q99: 19.77333333 | R99: 14.66 | S99: 19.77333333 | T99: 9.02 | U99: 11.1125
A100: 2025 | B100: 4 | C100: 5 | D100: 2 | E100: 45752.08333 | F100: 11.21 | G100: Valid | H100: 11.135 | I100: 16.49 | J100: Valid | K100: 19.83625 | N100: 11.21 | O100: 11.135 | P100: 16.49 | Q100: 19.83625 | R100: 16.49 | S100: 19.83625 | T100: 11.21 | U100: 11.135
A101: 2025 | B101: 4 | C101: 5 | D101: 3 | E101: 45752.125 | F101: 5.71 | G101: Valid | H101: 10.75208333 | I101: 11.03 | J101: Valid | K101: 19.49541667 | N101: 5.71 | O101: 10.75208333 | P101: 11.03 | Q101: 19.49541667 | R101: 11.03 | S101: 19.49541667 | T101: 5.71 | U101: 10.75208333
A102: 2025 | B102: 4 | C102: 5 | D102: 4 | E102: 45752.16667 | F102: 10.22 | G102: Valid | H102: 10.60416667 | I102: 14.57 | J102: Valid | K102: 19.39333333 | N102: 10.22 | O102: 10.60416667 | P102: 14.57 | Q102: 19.39333333 | R102: 14.57 | S102: 19.39333333 | T102: 10.22 | U102: 10.60416667
A103: 2025 | B103: 4 | C103: 5 | D103: 5 | E103: 45752.20833 | F103: 11.25 | G103: Valid | H103: 10.71625 | I103: 14.8 | J103: Valid | K103: 19.48416667 | N103: 11.25 | O103: 10.71625 | P103: 14.8 | Q103: 19.48416667 | R103: 14.8 | S103: 19.48416667 | T103: 11.25 | U103: 10.71625
A104: 2025 | B104: 4 | C104: 5 | D104: 6 | E104: 45752.25 | F104: 8.67 | G104: Valid | H104: 10.62666667 | I104: 13.28 | J104: Valid | K104: 19.41 | N104: 8.67 | O104: 10.62666667 | P104: 13.28 | Q104: 19.41 | R104: 13.28 | S104: 19.41 | T104: 8.67 | U104: 10.62666667
A105: 2025 | B105: 4 | C105: 5 | D105: 7 | E105: 45752.29167 | F105: 10.53 | G105: Valid | H105: 10.65541667 | I105: 14.42 | J105: Valid | K105: 19.45916667 | N105: 10.53 | O105: 10.65541667 | P105: 14.42 | Q105: 19.45916667 | R105: 14.42 | S105: 19.45916667 | T105: 10.53 | U105: 10.65541667
A106: 2025 | B106: 4 | C106: 5 | D106: 8 | E106: 45752.33333 | F106: 6.2 | G106: Valid | H106: 10.44208333 | I106: 10.73 | J106: Valid | K106: 19.23708333 | N106: 6.2 | O106: 10.44208333 | P106: 10.73 | Q106: 19.23708333 | R106: 10.73 | S106: 19.23708333 | T106: 6.2 | U106: 10.44208333
A107: 2025 | B107: 4 | C107: 5 | D107: 9 | E107: 45752.375 | F107: 9.21 | G107: Valid | H107: 10.44875 | I107: 13.99 | J107: Valid | K107: 19.27791667 | N107: 9.21 | O107: 10.44875 | P107: 13.99 | Q107: 19.27791667 | R107: 13.99 | S107: 19.27791667 | T107: 9.21 | U107: 10.44875
A108: 2025 | B108: 4 | C108: 5 | D108: 10 | E108: 45752.41667 | F108: 10.4 | G108: Valid | H108: 10.15458333 | I108: 16.2 | J108: Valid | K108: 18.75208333 | N108: =IF(G108="Valid", F108, NA()) -> 10.4 | O108: 10.15458333 | P108: 16.2 | Q108: 18.75208333 | R108: 16.2 | S108: 18.75208333 | T108: 10.4 | U108: 10.15458333
A109: 2025 | B109: 4 | C109: 5 | D109: 11 | E109: 45752.45833 | F109: 11.14 | G109: Valid | H109: 10.06333333 | I109: 26.75 | J109: Valid | K109: 18.78458333 | N109: 11.14 | O109: 10.06333333 | P109: 26.75 | Q109: 18.78458333 | R109: 26.75 | S109: 18.78458333 | T109: 11.14 | U109: 10.06333333
A110: 2025 | B110: 4 | C110: 5 | D110: 12 | E110: 45752.5 | F110: 8.72 | G110: Valid | H110: 9.855416667 | I110: 23.25 | J110: Valid | K110: 18.71041667 | N110: 8.72 | O110: 9.855416667 | P110: 23.25 | Q110: 18.71041667 | R110: 23.25 | S110: 18.71041667 | T110: 8.72 | U110: 9.855416667
A111: 2025 | B111: 4 | C111: 5 | D111: 13 | E111: 45752.54167 | F111: 7.91 | G111: Valid | H111: 9.62 | I111: 15.77 | J111: Valid | K111: 18.21375 | N111: 7.91 | O111: 9.62 | P111: 15.77 | Q111: 18.21375 | R111: 15.77 | S111: 18.21375 | T111: 7.91 | U111: 9.62
A112: 2025 | B112: 4 | C112: 5 | D112: 14 | E112: 45752.58333 | F112: 7.33 | G112: Valid | H112: 9.480833333 | I112: 13.78 | J112: Valid | K112: 17.825 | N112: 7.33 | O112: 9.480833333 | P112: 13.78 | Q112: 17.825 | R112: 13.78 | S112: 17.825 | T112: 7.33 | U112: 9.480833333
A113: 2025 | B113: 4 | C113: 5 | D113: 15 | E113: 45752.625 | F113: 6.97 | G113: Valid | H113: 9.335833333 | I113: 12.94 | J113: Valid | K113: 17.27166667 | N113: 6.97 | O113: 9.335833333 | P113: 12.94 | Q113: 17.27166667 | R113: 12.94 | S113: 17.27166667 | T113: 6.97 | U113: 9.335833333
A114: 2025 | B114: 4 | C114: 5 | D114: 16 | E114: 45752.66667 | F114: 5.48 | G114: Valid | H114: 9.1425 | I114: 10.61 | J114: Valid | K114: 16.55791667 | N114: 5.48 | O114: 9.1425 | P114: 10.61 | Q114: 16.55791667 | R114: 10.61 | S114: 16.55791667 | T114: 5.48 | U114: 9.1425
A115: 2025 | B115: 4 | C115: 5 | D115: 17 | E115: 45752.70833 | F115: 7.82 | G115: Valid | H115: 8.999166667 | I115: 11.89 | J115: Valid | K115: 15.88458333 | N115: 7.82 | O115: 8.999166667 | P115: 11.89 | Q115: 15.88458333 | R115: 11.89 | S115: 15.88458333 | T115: 7.82 | U115: 8.999166667
A116: 2025 | B116: 4 | C116: 5 | D116: 18 | E116: 45752.75 | F116: 5.77 | G116: Valid | H116: 8.686666667 | I116: 10.19 | J116: Valid | K116: 15.15666667 | N116: 5.77 | O116: 8.686666667 | P116: 10.19 | Q116: 15.15666667 | R116: 10.19 | S116: 15.15666667 | T116: 5.77 | U116: 8.686666667
A117: 2025 | B117: 4 | C117: 5 | D117: 19 | E117: 45752.79167 | F117: 6.66 | G117: Valid | H117: 8.534166667 | I117: 11.13 | J117: Valid | K117: 14.90333333 | N117: 6.66 | O117: 8.534166667 | P117: 11.13 | Q117: 14.90333333 | R117: 11.13 | S117: 14.90333333 | T117: 6.66 | U117: 8.534166667
A118: 2025 | B118: 4 | C118: 5 | D118: 20 | E118: 45752.83333 | F118: 6.67 | G118: Valid | H118: 8.43375 | I118: 11.04 | J118: Valid | K118: 14.69208333 | N118: 6.67 | O118: 8.43375 | P118: 11.04 | Q118: 14.69208333 | R118: 11.04 | S118: 14.69208333 | T118: 6.67 | U118: 8.43375
A119: 2025 | B119: 4 | C119: 5 | D119: 21 | E119: 45752.875 | F119: 5.26 | G119: Valid | H119: 8.219166667 | I119: 8.79 | J119: Valid | K119: 14.28625 | N119: 5.26 | O119: 8.219166667 | P119: 8.79 | Q119: 14.28625 | R119: 8.79 | S119: 14.28625 | T119: 5.26 | U119: 8.219166667
A120: 2025 | B120: 4 | C120: 5 | D120: 22 | E120: 45752.91667 | F120: 6.57 | G120: Valid | H120: 8.22125 | I120: 9.59 | J120: Valid | K120: 14.07041667 | N120: 6.57 | O120: 8.22125 | P120: 9.59 | Q120: 14.07041667 | R120: 9.59 | S120: 14.07041667 | T120: 6.57 | U120: 8.22125
A121: 2025 | B121: 4 | C121: 5 | D121: 23 | E121: 45752.95833 | F121: 2.53 | G121: Valid | H121: 7.937083333 | I121: 5.12 | J121: Valid | K121: 13.59041667 | N121: 2.53 | O121: 7.937083333 | P121: 5.12 | Q121: 13.59041667 | R121: 5.12 | S121: 13.59041667 | T121: 2.53 | U121: 7.937083333
A122: 2025 | B122: 4 | C122: 6 | D122: 0 | E122: 45753 | F122: 4.62 | G122: Valid | H122: 7.744583333 | I122: 8.21 | J122: Valid | K122: 13.30125 | N122: =IF(G122="Valid", F122, NA()) -> 4.62 | O122: 7.744583333 | P122: 8.21 | Q122: 13.30125 | R122: 8.21 | S122: 13.30125 | T122: 4.62 | U122: 7.744583333
A123: 2025 | B123: 4 | C123: 6 | D123: 1 | E123: 45753.04167 | F123: 10.35 | G123: Valid | H123: 7.8 | I123: 14.47 | J123: Valid | K123: 13.29333333 | N123: 10.35 | O123: 7.8 | P123: 14.47 | Q123: 13.29333333 | R123: 14.47 | S123: 13.29333333 | T123: 10.35 | U123: 7.8
A124: 2025 | B124: 4 | C124: 6 | D124: 2 | E124: 45753.08333 | F124: 5.95 | G124: Valid | H124: 7.580833333 | I124: 9.56 | J124: Valid | K124: 13.00458333 | N124: 5.95 | O124: 7.580833333 | P124: 9.56 | Q124: 13.00458333 | R124: 9.56 | S124: 13.00458333 | T124: 5.95 | U124: 7.580833333
A125: 2025 | B125: 4 | C125: 6 | D125: 3 | E125: 45753.125 | F125: 5.07 | G125: Valid | H125: 7.554166667 | I125: 8.14 | J125: Valid | K125: 12.88416667 | N125: 5.07 | O125: 7.554166667 | P125: 8.14 | Q125: 12.88416667 | R125: 8.14 | S125: 12.88416667 | T125: 5.07 | U125: 7.554166667
A126: 2025 | B126: 4 | C126: 6 | D126: 4 | E126: 45753.16667 | F126: 1.9 | G126: Valid | H126: 7.2075 | I126: 5.53 | J126: Valid | K126: 12.5075 | N126: 1.9 | O126: 7.2075 | P126: 5.53 | Q126: 12.5075 | R126: 5.53 | S126: 12.5075 | T126: 1.9 | U126: 7.2075
A127: 2025 | B127: 4 | C127: 6 | D127: 5 | E127: 45753.20833 | F127: 5.07 | G127: Valid | H127: 6.95 | I127: 8.44 | J127: Valid | K127: 12.2425 | N127: 5.07 | O127: 6.95 | P127: 8.44 | Q127: 12.2425 | R127: 8.44 | S127: 12.2425 | T127: 5.07 | U127: 6.95
A128: 2025 | B128: 4 | C128: 6 | D128: 6 | E128: 45753.25 | F128: 6.33 | G128: Valid | H128: 6.8525 | I128: 9.41 | J128: Valid | K128: 12.08125 | N128: 6.33 | O128: 6.8525 | P128: 9.41 | Q128: 12.08125 | R128: 9.41 | S128: 12.08125 | T128: 6.33 | U128: 6.8525
A129: 2025 | B129: 4 | C129: 6 | D129: 7 | E129: 45753.29167 | F129: 3.99 | G129: Valid | H129: 6.58 | I129: 7.19 | J129: Valid | K129: 11.78 | N129: 3.99 | O129: 6.58 | P129: 7.19 | Q129: 11.78 | R129: 7.19 | S129: 11.78 | T129: 3.99 | U129: 6.58
A130: 2025 | B130: 4 | C130: 6 | D130: 8 | E130: 45753.33333 | F130: 3.94 | G130: Valid | H130: 6.485833333 | I130: 7.91 | J130: Valid | K130: 11.6625 | N130: =IF(G130="Valid", F130, NA()) -> 3.94 | O130: =IF(G130="Valid", H130, NA()) -> 6.485833333 | P130: =IF(J130="Valid", I130, NA()) -> 7.91 | Q130: =IF(J130="Valid", K130, NA()) -> 11.6625 | R130: 7.91 | S130: 11.6625 | T130: 3.94 | U130: 6.485833333
A131: 2025 | B131: 4 | C131: 6 | D131: 9 | E131: 45753.375 | F131: 4.56 | G131: Valid | H131: 6.292083333 | I131: 9.82 | J131: Valid | K131: 11.48875 | N131: 4.56 | O131: 6.292083333 | P131: 9.82 | Q131: 11.48875 | R131: 9.82 | S131: 11.48875 | T131: 4.56 | U131: 6.292083333
A132: 2025 | B132: 4 | C132: 6 | D132: =IF(D131=23,0,D131+1) -> 10 | E132: =E131+0.0416666666666666 -> 45753.41667 | F132: 6.33 | G132: Valid | H132: 6.1225 | I132: 12.71 | J132: Valid | K132: 11.34333333 | N132: 6.33 | O132: 6.1225 | P132: 12.71 | Q132: 11.34333333 | R132: 12.71 | S132: 11.34333333 | T132: 6.33 | U132: 6.1225
A133: 2025 | B133: 4 | C133: 6 | D133: 11 | E133: 45753.45833 | F133: 5.51 | G133: Valid | H133: 5.887916667 | I133: 11.97 | J133: Valid | K133: 10.7275 | N133: 5.51 | O133: 5.887916667 | P133: 11.97 | Q133: 10.7275 | R133: 11.97 | S133: 10.7275 | T133: 5.51 | U133: 5.887916667
A134: 2025 | B134: 4 | C134: 6 | D134: 12 | E134: 45753.5 | F134: 4.99 | G134: Valid | H134: 5.7325 | I134: 11.66 | J134: Valid | K134: 10.24458333 | N134: 4.99 | O134: 5.7325 | P134: 11.66 | Q134: 10.24458333 | R134: 11.66 | S134: 10.24458333 | T134: 4.99 | U134: 5.7325
A135: 2025 | B135: 4 | C135: 6 | D135: 13 | E135: 45753.54167 | F135: 4.92 | G135: Valid | H135: 5.607916667 | I135: 9.6 | J135: Valid | K135: 9.9875 | N135: 4.92 | O135: 5.607916667 | P135: 9.6 | Q135: 9.9875 | R135: 9.6 | S135: 9.9875 | T135: 4.92 | U135: 5.607916667
A136: 2025 | B136: 4 | C136: 6 | D136: 14 | E136: 45753.58333 | F136: 2.9 | G136: Valid | H136: 5.423333333 | I136: 6.62 | J136: Valid | K136: 9.689166667 | N136: 2.9 | O136: 5.423333333 | P136: 6.62 | Q136: 9.689166667 | R136: 6.62 | S136: 9.689166667 | T136: 2.9 | U136: 5.423333333
A137: 2025 | B137: 4 | C137: 6 | D137: 15 | E137: 45753.625 | F137: 2.03 | G137: Valid | H137: 5.2175 | I137: 5.26 | J137: Valid | K137: 9.369166667 | N137: 2.03 | O137: 5.2175 | P137: 5.26 | Q137: 9.369166667 | R137: 5.26 | S137: 9.369166667 | T137: 2.03 | U137: 5.2175
A138: 2025 | B138: 4 | C138: 6 | D138: 16 | E138: 45753.66667 | F138: 3.98 | G138: Valid | H138: 5.155 | I138: 7.57 | J138: Valid | K138: 9.2425 | N138: 3.98 | O138: 5.155 | P138: 7.57 | Q138: 9.2425 | R138: 7.57 | S138: 9.2425 | T138: 3.98 | U138: 5.155
A139: 2025 | B139: 4 | C139: 6 | D139: 17 | E139: 45753.70833 | F139: 4.02 | G139: Valid | H139: 4.996666667 | I139: 7.92 | J139: Valid | K139: 9.077083333 | N139: 4.02 | O139: 4.996666667 | P139: 7.92 | Q139: 9.077083333 | R139: 7.92 | S139: 9.077083333 | T139: 4.02 | U139: 4.996666667
A140: 2025 | B140: 4 | C140: 6 | D140: 18 | E140: 45753.75 | F140: 3.9 | G140: Valid | H140: 4.91875 | I140: 9.08 | J140: Valid | K140: 9.030833333 | N140: 3.9 | O140: 4.91875 | P140: 9.08 | Q140: 9.030833333 | R140: 9.08 | S140: 9.030833333 | T140: 3.9 | U140: 4.91875
A141: 2025 | B141: 4 | C141: 6 | D141: 19 | E141: 45753.79167 | F141: 0.48 | G141: Valid | H141: 4.66125 | I141: 4.43 | J141: Valid | K141: 8.751666667 | N141: 0.48 | O141: 4.66125 | P141: 4.43 | Q141: 8.751666667 | R141: 4.43 | S141: 8.751666667 | T141: 0.48 | U141: 4.66125
A142: 2025 | B142: 4 | C142: 6 | D142: 20 | E142: 45753.83333 | F142: 4.02 | G142: Valid | H142: 4.550833333 | I142: 7.95 | J142: Valid | K142: 8.622916667 | N142: 4.02 | O142: 4.550833333 | P142: 7.95 | Q142: 8.622916667 | R142: 7.95 | S142: 8.622916667 | T142: 4.02 | U142: 4.550833333
A143: 2025 | B143: 4 | C143: 6 | D143: 21 | E143: 45753.875 | F143: 6.19 | G143: Valid | H143: 4.589583333 | I143: 10.1 | J143: Valid | K143: 8.6775 | N143: 6.19 | O143: 4.589583333 | P143: 10.1 | Q143: 8.6775 | R143: 10.1 | S143: 8.6775 | T143: 6.19 | U143: 4.589583333
A144: 2025 | B144: 4 | C144: 6 | D144: 22 | E144: 45753.91667 | F144: 4.99 | G144: Valid | H144: 4.52375 | I144: 7.52 | J144: Valid | K144: 8.59125 | N144: 4.99 | O144: 4.52375 | P144: 7.52 | Q144: 8.59125 | R144: 7.52 | S144: 8.59125 | T144: 4.99 | U144: 4.52375
A145: 2025 | B145: 4 | C145: 6 | D145: 23 | E145: 45753.95833 | F145: 1.33 | G145: Valid | H145: 4.47375 | I145: 3.47 | J145: Valid | K145: 8.5225 | N145: 1.33 | O145: 4.47375 | P145: 3.47 | Q145: 8.5225 | R145: 3.47 | S145: 8.5225 | T145: 1.33 | U145: 4.47375
A146: 2025 | B146: 4 | C146: 7 | D146: 0 | E146: 45754 | F146: 8.33 | G146: Valid | H146: 4.628333333 | I146: 10.45 | J146: Valid | K146: 8.615833333 | N146: 8.33 | O146: 4.628333333 | P146: 10.45 | Q146: 8.615833333 | R146: 10.45 | S146: 8.615833333 | T146: 8.33 | U146: 4.628333333
A147: 2025 | B147: 4 | C147: 7 | D147: 1 | E147: 45754.04167 | F147: 6.15 | G147: Valid | H147: 4.453333333 | I147: 7.96 | J147: Valid | K147: 8.344583333 | N147: 6.15 | O147: 4.453333333 | P147: 7.96 | Q147: 8.344583333 | R147: 7.96 | S147: 8.344583333 | T147: 6.15 | U147: 4.453333333
A148: 2025 | B148: 4 | C148: 7 | D148: 2 | E148: 45754.08333 | F148: 5.49 | G148: Valid | H148: 4.434166667 | I148: 7.79 | J148: Valid | K148: 8.270833333 | N148: 5.49 | O148: 4.434166667 | P148: 7.79 | Q148: 8.270833333 | R148: 7.79 | S148: 8.270833333 | T148: 5.49 | U148: 4.434166667
A149: 2025 | B149: 4 | C149: 7 | D149: 3 | E149: 45754.125 | F149: 8.22 | G149: Valid | H149: 4.565416667 | I149: 9.92 | J149: Valid | K149: 8.345 | N149: 8.22 | O149: 4.565416667 | P149: 9.92 | Q149: 8.345 | R149: 9.92 | S149: 8.345 | T149: 8.22 | U149: 4.565416667
A150: 2025 | B150: 4 | C150: 7 | D150: 4 | E150: 45754.16667 | F150: 1.45 | G150: Valid | H150: 4.546666667 | I150: 3.57 | J150: Valid | K150: 8.263333333 | N150: 1.45 | O150: 4.546666667 | P150: 3.57 | Q150: 8.263333333 | R150: 3.57 | S150: 8.263333333 | T150: 1.45 | U150: 4.546666667
A151: 2025 | B151: 4 | C151: 7 | D151: 5 | E151: 45754.20833 | F151: 5.81 | G151: Valid | H151: 4.5775 | I151: 8.46 | J151: Valid | K151: 8.264166667 | N151: 5.81 | O151: 4.5775 | P151: 8.46 | Q151: 8.264166667 | R151: 8.46 | S151: 8.264166667 | T151: 5.81 | U151: 4.5775
A152: 2025 | B152: 4 | C152: 7 | D152: 6 | E152: 45754.25 | F152: 5.63 | G152: Valid | H152: 4.548333333 | I152: 7.84 | J152: Valid | K152: 8.19875 | N152: 5.63 | O152: 4.548333333 | P152: 7.84 | Q152: 8.19875 | R152: 7.84 | S152: 8.19875 | T152: 5.63 | U152: 4.548333333
A153: 2025 | B153: 4 | C153: 7 | D153: 7 | E153: 45754.29167 | F153: 7.1 | G153: Valid | H153: 4.677916667 | I153: 10.14 | J153: Valid | K153: 8.321666667 | N153: 7.1 | O153: 4.677916667 | P153: 10.14 | Q153: 8.321666667 | R153: 10.14 | S153: 8.321666667 | T153: 7.1 | U153: 4.677916667
A154: 2025 | B154: 4 | C154: 7 | D154: 8 | E154: 45754.33333 | F154: 4.83 | G154: Valid | H154: 4.715 | I154: 8.03 | J154: Valid | K154: 8.326666667 | N154: 4.83 | O154: 4.715 | P154: 8.03 | Q154: 8.326666667 | R154: 8.03 | S154: 8.326666667 | T154: 4.83 | U154: 4.715
A155: 2025 | B155: 4 | C155: =C131+1 -> 7 | D155: 9 | E155: 45754.375 | F155: 5.61 | G155: Valid | H155: 4.75875 | I155: 9.6 | J155: Valid | K155: 8.3175 | N155: 5.61 | O155: 4.75875 | P155: 9.6 | Q155: 8.3175 | R155: 9.6 | S155: 8.3175 | T155: 5.61 | U155: 4.75875
A156: 2025 | B156: 4 | C156: 7 | D156: 10 | E156: 45754.41667 | F156: 6.56 | G156: Valid | H156: 4.768333333 | I156: 11.47 | J156: Valid | K156: 8.265833333 | N156: 6.56 | O156: 4.768333333 | P156: 11.47 | Q156: 8.265833333 | R156: 11.47 | S156: 8.265833333 | T156: 6.56 | U156: 4.768333333
A157: 2025 | B157: 4 | C157: 7 | D157: 11 | E157: 45754.45833 | F157: 3.04 | G157: Valid | H157: 4.665416667 | I157: 9.05 | J157: Valid | K157: 8.144166667 | N157: 3.04 | O157: 4.665416667 | P157: 9.05 | Q157: 8.144166667 | R157: 9.05 | S157: 8.144166667 | T157: 3.04 | U157: 4.665416667
A158: 2025 | B158: 4 | C158: 7 | D158: 12 | E158: 45754.5 | F158: 3.78 | G158: Valid | H158: 4.615 | I158: 8.57 | J158: Valid | K158: 8.015416667 | N158: 3.78 | O158: 4.615 | P158: 8.57 | Q158: 8.015416667 | R158: 8.57 | S158: 8.015416667 | T158: 3.78 | U158: 4.615
A159: 2025 | B159: 4 | C159: 7 | D159: 13 | E159: 45754.54167 | F159: 0.33 | G159: Valid | H159: 4.42375 | I159: 4.51 | J159: Valid | K159: 7.803333333 | N159: 0.33 | O159: 4.42375 | P159: 4.51 | Q159: 7.803333333 | R159: 4.51 | S159: 7.803333333 | T159: 0.33 | U159: 4.42375
A160: 2025 | B160: 4 | C160: 7 | D160: 14 | E160: 45754.58333 | F160: 5.15 | G160: Valid | H160: 4.5175 | I160: 9.88 | J160: Valid | K160: 7.939166667 | N160: 5.15 | O160: 4.5175 | P160: 9.88 | Q160: 7.939166667 | R160: 9.88 | S160: 7.939166667 | T160: 5.15 | U160: 4.5175
A161: 2025 | B161: 4 | C161: 7 | D161: 15 | E161: 45754.625 | F161: 3.37 | G161: Valid | H161: 4.573333333 | I161: 8.15 | J161: Valid | K161: 8.059583333 | N161: 3.37 | O161: 4.573333333 | P161: 8.15 | Q161: 8.059583333 | R161: 8.15 | S161: 8.059583333 | T161: 3.37 | U161: 4.573333333
A162: 2025 | B162: 4 | C162: 7 | D162: 16 | E162: 45754.66667 | F162: 6.6 | G162: Valid | H162: 4.6825 | I162: 10.57 | J162: Valid | K162: 8.184583333 | N162: 6.6 | O162: 4.6825 | P162: 10.57 | Q162: 8.184583333 | R162: 10.57 | S162: 8.184583333 | T162: 6.6 | U162: 4.6825
A163: 2025 | B163: 4 | C163: 7 | D163: 17 | E163: 45754.70833 | F163: 5.31 | G163: Valid | H163: 4.73625 | I163: 8.95 | J163: Valid | K163: 8.2275 | N163: 5.31 | O163: 4.73625 | P163: 8.95 | Q163: 8.2275 | R163: 8.95 | S163: 8.2275 | T163: 5.31 | U163: 4.73625
A164: 2025 | B164: 4 | C164: 7 | D164: 18 | E164: 45754.75 | F164: 2.62 | G164: Valid | H164: 4.682916667 | I164: 6.65 | J164: Valid | K164: 8.12625 | N164: 2.62 | O164: 4.682916667 | P164: 6.65 | Q164: 8.12625 | R164: 6.65 | S164: 8.12625 | T164: 2.62 | U164: 4.682916667
A165: 2025 | B165: 4 | C165: 7 | D165: 19 | E165: 45754.79167 | F165: 5.03 | G165: Valid | H165: 4.8725 | I165: 11.29 | J165: Valid | K165: 8.412083333 | N165: 5.03 | O165: 4.8725 | P165: 11.29 | Q165: 8.412083333 | R165: 11.29 | S165: 8.412083333 | T165: 5.03 | U165: 4.8725
A166: 2025 | B166: 4 | C166: 7 | D166: 20 | E166: 45754.83333 | F166: 5.52 | G166: Valid | H166: 4.935 | I166: 13.17 | J166: Valid | K166: 8.629583333 | N166: 5.52 | O166: 4.935 | P166: 13.17 | Q166: 8.629583333 | R166: 13.17 | S166: 8.629583333 | T166: 5.52 | U166: 4.935
A167: 2025 | B167: 4 | C167: 7 | D167: 21 | E167: 45754.875 | F167: 3.4 | G167: Valid | H167: 4.81875 | I167: 7.41 | J167: Valid | K167: 8.5175 | N167: 3.4 | O167: 4.81875 | P167: 7.41 | Q167: 8.5175 | R167: 7.41 | S167: 8.5175 | T167: 3.4 | U167: 4.81875
A168: 2025 | B168: 4 | C168: 7 | D168: 22 | E168: 45754.91667 | F168: 4.73 | G168: Valid | H168: 4.807916667 | I168: 8.21 | J168: Valid | K168: 8.54625 | N168: 4.73 | O168: 4.807916667 | P168: 8.21 | Q168: 8.54625 | R168: 8.21 | S168: 8.54625 | T168: 4.73 | U168: 4.807916667
A169: 2025 | B169: 4 | C169: 7 | D169: 23 | E169: 45754.95833 | F169: 6.57 | G169: Valid | H169: 5.02625 | I169: 10.18 | J169: Valid | K169: 8.825833333 | N169: 6.57 | O169: 5.02625 | P169: 10.18 | Q169: 8.825833333 | R169: 10.18 | S169: 8.825833333 | T169: 6.57 | U169: 5.02625
A170: 2025 | B170: 4 | C170: 8 | D170: 0 | E170: 45755 | F170: 3.05 | G170: Valid | H170: 4.80625 | I170: 6.46 | J170: Valid | K170: 8.659583333 | N170: 3.05 | O170: 4.80625 | P170: 6.46 | Q170: 8.659583333 | R170: 6.46 | S170: 8.659583333 | T170: 3.05 | U170: 4.80625
A171: 2025 | B171: 4 | C171: 8 | D171: 1 | E171: 45755.04167 | F171: 2.83 | G171: Valid | H171: 4.667916667 | I171: 6.37 | J171: Valid | K171: 8.593333333 | N171: 2.83 | O171: 4.667916667 | P171: 6.37 | Q171: 8.593333333 | R171: 6.37 | S171: 8.593333333 | T171: 2.83 | U171: 4.667916667
A172: 2025 | B172: 4 | C172: 8 | D172: 2 | E172: 45755.08333 | F172: 5.03 | G172: Valid | H172: 4.64875 | I172: 8.48 | J172: Valid | K172: 8.622083333 | N172: 5.03 | O172: 4.64875 | P172: 8.48 | Q172: 8.622083333 | R172: 8.48 | S172: 8.622083333 | T172: 5.03 | U172: 4.64875
A173: 2025 | B173: 4 | C173: 8 | D173: 3 | E173: 45755.125 | F173: 3.19 | G173: Valid | H173: 4.439166667 | I173: 7.35 | J173: Valid | K173: 8.515 | N173: 3.19 | O173: 4.439166667 | P173: 7.35 | Q173: 8.515 | R173: 7.35 | S173: 8.515 | T173: 3.19 | U173: 4.439166667
A174: 2025 | B174: 4 | C174: 8 | D174: 4 | E174: 45755.16667 | F174: 5.2 | G174: Valid | H174: 4.595416667 | I174: 9.77 | J174: Valid | K174: 8.773333333 | N174: 5.2 | O174: 4.595416667 | P174: 9.77 | Q174: 8.773333333 | R174: 9.77 | S174: 8.773333333 | T174: 5.2 | U174: 4.595416667
A175: 2025 | B175: 4 | C175: 8 | D175: 5 | E175: 45755.20833 | F175: 0.45 | G175: Valid | H175: 4.372083333 | I175: 4.07 | J175: Valid | K175: 8.590416667 | N175: 0.45 | O175: 4.372083333 | P175: 4.07 | Q175: 8.590416667 | R175: 4.07 | S175: 8.590416667 | T175: 0.45 | U175: 4.372083333
A176: 2025 | B176: 4 | C176: 8 | D176: 6 | E176: 45755.25 | F176: 2.35 | G176: Valid | H176: 4.235416667 | I176: 5.44 | J176: Valid | K176: 8.490416667 | N176: 2.35 | O176: 4.235416667 | P176: 5.44 | Q176: 8.490416667 | R176: 5.44 | S176: 8.490416667 | T176: 2.35 | U176: 4.235416667
A177: 2025 | B177: 4 | C177: 8 | D177: 7 | E177: 45755.29167 | F177: 6.53 | G177: Valid | H177: 4.211666667 | I177: 9.55 | J177: Valid | K177: 8.465833333 | N177: 6.53 | O177: 4.211666667 | P177: 9.55 | Q177: 8.465833333 | R177: 9.55 | S177: 8.465833333 | T177: 6.53 | U177: 4.211666667
A178: 2025 | B178: 4 | C178: 8 | D178: 8 | E178: 45755.33333 | F178: 8.43 | G178: Valid | H178: 4.361666667 | I178: 12.94 | J178: Valid | K178: 8.670416667 | N178: 8.43 | O178: 4.361666667 | P178: 12.94 | Q178: 8.670416667 | R178: 12.94 | S178: 8.670416667 | T178: 8.43 | U178: 4.361666667
A179: 2025 | B179: 4 | C179: 8 | D179: 9 | E179: 45755.375 | F179: 9.12 | G179: Valid | H179: 4.507916667 | I179: 24.83 | J179: Valid | K179: 9.305 | N179: 9.12 | O179: 4.507916667 | P179: 24.83 | Q179: 9.305 | R179: 24.83 | S179: 9.305 | T179: 9.12 | U179: 4.507916667
A180: 2025 | B180: 4 | C180: 8 | D180: 10 | E180: 45755.41667 | F180: 8.51 | G180: Valid | H180: 4.589166667 | I180: 19.99 | J180: Valid | K180: 9.66 | N180: 8.51 | O180: 4.589166667 | P180: 19.99 | Q180: 9.66 | R180: 19.99 | S180: 9.66 | T180: 8.51 | U180: 4.589166667
A181: 2025 | B181: 4 | C181: 8 | D181: 11 | E181: 45755.45833 | F181: 9.02 | G181: Valid | H181: 4.838333333 | I181: 25.4 | J181: Valid | K181: 10.34125 | N181: 9.02 | O181: 4.838333333 | P181: 25.4 | Q181: 10.34125 | R181: 25.4 | S181: 10.34125 | T181: 9.02 | U181: 4.838333333
A182: 2025 | B182: 4 | C182: 8 | D182: 12 | E182: 45755.5 | F182: 5.58 | G182: Valid | H182: 4.913333333 | I182: 15.11 | J182: Valid | K182: 10.61375 | N182: 5.58 | O182: 4.913333333 | P182: 15.11 | Q182: 10.61375 | R182: 15.11 | S182: 10.61375 | T182: 5.58 | U182: 4.913333333
A183: 2025 | B183: 4 | C183: 8 | D183: 13 | E183: 45755.54167 | F183: 4.08 | G183: Valid | H183: 5.069583333 | I183: 10.72 | J183: Valid | K183: 10.8725 | N183: 4.08 | O183: 5.069583333 | P183: 10.72 | Q183: 10.8725 | R183: 10.72 | S183: 10.8725 | T183: 4.08 | U183: 5.069583333
A184: 2025 | B184: 4 | C184: 8 | D184: 14 | E184: 45755.58333 | F184: 5.46 | G184: Valid | H184: 5.0825 | I184: 12.69 | J184: Valid | K184: 10.98958333 | N184: 5.46 | O184: 5.0825 | P184: 12.69 | Q184: 10.98958333 | R184: 12.69 | S184: 10.98958333 | T184: 5.46 | U184: 5.0825
A185: 2025 | B185: 4 | C185: 8 | D185: 15 | E185: 45755.625 | F185: 7.15 | G185: Valid | H185: 5.24 | I185: 13.74 | J185: Valid | K185: 11.2225 | N185: 7.15 | O185: 5.24 | P185: 13.74 | Q185: 11.2225 | R185: 13.74 | S185: 11.2225 | T185: 7.15 | U185: 5.24
A186: 2025 | B186: 4 | C186: 8 | D186: 16 | E186: 45755.66667 | F186: 5.46 | G186: Valid | H186: 5.1925 | I186: 11.92 | J186: Valid | K186: 11.27875 | N186: 5.46 | O186: 5.1925 | P186: 11.92 | Q186: 11.27875 | R186: 11.92 | S186: 11.27875 | T186: 5.46 | U186: 5.1925
A187: 2025 | B187: 4 | C187: 8 | D187: 17 | E187: 45755.70833 | F187: 7.55 | G187: Valid | H187: 5.285833333 | I187: 15.37 | J187: Valid | K187: 11.54625 | N187: 7.55 | O187: 5.285833333 | P187: 15.37 | Q187: 11.54625 | R187: 15.37 | S187: 11.54625 | T187: 7.55 | U187: 5.285833333
A188: 2025 | B188: 4 | C188: 8 | D188: 18 | E188: 45755.75 | F188: 7.83 | G188: Valid | H188: 5.502916667 | I188: 16.19 | J188: Valid | K188: 11.94375 | N188: 7.83 | O188: 5.502916667 | P188: 16.19 | Q188: 11.94375 | R188: 16.19 | S188: 11.94375 | T188: 7.83 | U188: 5.502916667
A189: 2025 | B189: 4 | C189: 8 | D189: 19 | E189: 45755.79167 | F189: 6.84 | G189: Valid | H189: 5.578333333 | I189: 26.46 | J189: Valid | K189: 12.57583333 | N189: 6.84 | O189: 5.578333333 | P189: 26.46 | Q189: 12.57583333 | R189: 26.46 | S189: 12.57583333 | T189: 6.84 | U189: 5.578333333
A190: 2025 | B190: 4 | C190: 8 | D190: 20 | E190: 45755.83333 | F190: 4.98 | G190: Valid | H190: 5.555833333 | I190: 10.2 | J190: Valid | K190: 12.45208333 | N190: 4.98 | O190: 5.555833333 | P190: 10.2 | Q190: 12.45208333 | R190: 10.2 | S190: 12.45208333 | T190: 4.98 | U190: 5.555833333
A191: 2025 | B191: 4 | C191: 8 | D191: 21 | E191: 45755.875 | F191: 6.74 | G191: Valid | H191: 5.695 | I191: 11.65 | J191: Valid | K191: 12.62875 | N191: 6.74 | O191: 5.695 | P191: 11.65 | Q191: 12.62875 | R191: 11.65 | S191: 12.62875 | T191: 6.74 | U191: 5.695
A192: 2025 | B192: 4 | C192: 8 | D192: 22 | E192: 45755.91667 | F192: 4.35 | G192: Valid | H192: 5.679166667 | I192: 8.97 | J192: Valid | K192: 12.66041667 | N192: 4.35 | O192: 5.679166667 | P192: 8.97 | Q192: 12.66041667 | R192: 8.97 | S192: 12.66041667 | T192: 4.35 | U192: 5.679166667
A193: 2025 | B193: 4 | C193: 8 | D193: 23 | E193: 45755.95833 | F193: 4.15 | G193: Valid | H193: 5.578333333 | I193: 7.99 | J193: Valid | K193: 12.56916667 | N193: 4.15 | O193: 5.578333333 | P193: 7.99 | Q193: 12.56916667 | R193: 7.99 | S193: 12.56916667 | T193: 4.15 | U193: 5.578333333
A194: 2025 | B194: 4 | C194: 9 | D194: 0 | E194: 45756 | F194: 5.23 | G194: Valid | H194: 5.669166667 | I194: 8.95 | J194: Valid | K194: 12.67291667 | N194: =IF(G194="Valid", F194, NA()) -> 5.23 | O194: =IF(G194="Valid", H194, NA()) -> 5.669166667 | P194: =IF(J194="Valid", I194, NA()) -> 8.95 | Q194: =IF(J194="Valid", K194, NA()) -> 12.67291667 | R194: 8.95 | S194: 12.67291667 | T194: 5.23 | U194: 5.669166667
A195: 2025 | B195: 4 | C195: 9 | D195: 1 | E195: 45756.04167 | F195: 1.74 | G195: Valid | H195: 5.62375 | I195: 4.32 | J195: Valid | K195: 12.5875 | N195: 1.74 | O195: 5.62375 | P195: 4.32 | Q195: 12.5875 | R195: 4.32 | S195: 12.5875 | T195: 1.74 | U195: 5.62375
A196: 2025 | B196: 4 | C196: 9 | D196: =IF(D195=23,0,D195+1) -> 2 | E196: =E195+0.0416666666666666 -> 45756.08333 | F196: 3.81 | G196: Valid | H196: 5.572916667 | I196: 6.74 | J196: Valid | K196: 12.515 | N196: 3.81 | O196: 5.572916667 | P196: 6.74 | Q196: 12.515 | R196: 6.74 | S196: 12.515 | T196: 3.81 | U196: 5.572916667
A197: 2025 | B197: 4 | C197: 9 | D197: 3 | E197: 45756.125 | F197: 5.83 | G197: Valid | H197: 5.682916667 | I197: 8.15 | J197: Valid | K197: 12.54833333 | N197: 5.83 | O197: 5.682916667 | P197: 8.15 | Q197: 12.54833333 | R197: 8.15 | S197: 12.54833333 | T197: 5.83 | U197: 5.682916667
A198: 2025 | B198: 4 | C198: 9 | D198: 4 | E198: 45756.16667 | F198: 6.03 | G198: Valid | H198: 5.7175 | I198: 10.35 | J198: Valid | K198: 12.5725 | N198: 6.03 | O198: 5.7175 | P198: 10.35 | Q198: 12.5725 | R198: 10.35 | S198: 12.5725 | T198: 6.03 | U198: 5.7175
A199: 2025 | B199: 4 | C199: 9 | D199: 5 | E199: 45756.20833 | F199: 5.68 | G199: Valid | H199: 5.935416667 | I199: 9.32 | J199: Valid | K199: 12.79125 | N199: 5.68 | O199: 5.935416667 | P199: 9.32 | Q199: 12.79125 | R199: 9.32 | S199: 12.79125 | T199: 5.68 | U199: 5.935416667
A200: 2025 | B200: 4 | C200: 9 | D200: 6 | E200: 45756.25 | F200: 3.31 | G200: Valid | H200: 5.975416667 | I200: 6.7 | J200: Valid | K200: 12.84375 | N200: 3.31 | O200: 5.975416667 | P200: 6.7 | Q200: 12.84375 | R200: 6.7 | S200: 12.84375 | T200: 3.31 | U200: 5.975416667
... 522 more rows

Sheet Raw data_format
A1: Parameter | B1: Format | C1: Comment | D1: Units of measure | E1: Minimum | F1: Maximum
A2: Year | B2: yyyy | C2: 4 integer format | D2: Not applicable | E2: 2015 | F2: Until reporting ceases
A3: Month | B3: mm | C3: 2 integer format | D3: Not applicable | E3: 1 | F3: 12
A4: Day | B4: dd | C4: 2 integer format | D4: Not applicable | E4: 1 | F4: 31
A5: Hour | B5: hh | C5: 2 integer format | D5: Not applicable | E5: 0 | F5: 23
A6: PM10 | B6: 0 | C6: 1 decimal place resolution | D6: µg/m3 | E6: Negative | F6: Instrument specific
A7: PM2.5 | B7: 0 | C7: 2 decimal place resolution | D7: µg/m3 | E7: Negative | F7: Instrument specific
A8: Status | B8: Text | C8: 7 character format | D8: Not applicable | E8: Valid | F8: Invalid

Sheet Sheet1
